[Event "Early-Titled-Tuesday-Blitz-February-27-2024"]
[Site "Chess.com"]
[Date "2024.02.27"]
[Round "4"]
[White "BursaBBSatranc"]
[Black "Ticoluis"]
[Result "1-0"]
[WhiteElo "2637"]
[BlackElo "2452"]
[TimeControl "180+1"]
[EndTime "8:38:55 PST"]
[Termination "BursaBBSatranc won on time"]

1. d4 {[%clk 0:03:00.9]} 1... Nf6 {[%clk 0:02:58.7]} 2. Bf4 {[%clk 0:03:01.2]}
2... d6 {[%clk 0:02:57.6]} 3. e3 {[%clk 0:03:01.9]} 3... Nbd7 {[%clk 0:02:58]}
4. Nf3 {[%clk 0:03:02.6]} 4... g6 {[%clk 0:02:57.3]} 5. h3 {[%clk 0:03:02.9]}
5... Bg7 {[%clk 0:02:57.6]} 6. Be2 {[%clk 0:03:03.3]} 6... c5 {[%clk 0:02:58]}
7. c3 {[%clk 0:03:03.1]} 7... O-O {[%clk 0:02:58.5]} 8. O-O {[%clk 0:03:02.9]}
8... Qb6 {[%clk 0:02:56.9]} 9. Qb3 {[%clk 0:03:01.4]} 9... Re8 {[%clk
0:02:51.7]} 10. Nbd2 {[%clk 0:02:54.2]} 10... Nf8 {[%clk 0:02:46.8]} 11. Bc4
{[%clk 0:02:12.6]} 11... Be6 {[%clk 0:02:41]} 12. Bxe6 {[%clk 0:01:56.3]} 12...
Nxe6 {[%clk 0:02:38.7]} 13. Bh2 {[%clk 0:01:56.4]} 13... Qc6 {[%clk 0:02:31.7]}
14. a4 {[%clk 0:01:53]} 14... Rec8 {[%clk 0:02:25.2]} 15. Rfe1 {[%clk 0:01:52]}
15... c4 {[%clk 0:02:22.3]} 16. Qc2 {[%clk 0:01:50]} 16... b5 {[%clk 0:02:17.2]}
17. e4 {[%clk 0:01:44.2]} 17... Qb7 {[%clk 0:02:14.2]} 18. axb5 {[%clk
0:01:40.9]} 18... Qxb5 {[%clk 0:02:10.8]} 19. e5 {[%clk 0:01:37.9]} 19... dxe5
{[%clk 0:01:56.6]} 20. Nxe5 {[%clk 0:01:30.9]} 20... Nd5 {[%clk 0:01:51.8]} 21.
Ra2 {[%clk 0:01:13.5]} 21... a5 {[%clk 0:01:06.3]} 22. Qe4 {[%clk 0:01:13.1]}
22... Nf6 {[%clk 0:01:01.3]} 23. Qe2 {[%clk 0:01:08.7]} 23... Nd5 {[%clk
0:00:55]} 24. Nxf7 {[%clk 0:00:27.3]} 24... Nef4 {[%clk 0:00:54.2]} 25. Bxf4
{[%clk 0:00:27]} 25... Nxf4 {[%clk 0:00:53.6]} 26. Qe4 {[%clk 0:00:19.4]} 26...
Qf5 {[%clk 0:00:43.5]} 27. Qxf5 {[%clk 0:00:18.8]} 27... gxf5 {[%clk 0:00:43.2]}
28. Ne5 {[%clk 0:00:14.8]} 28... Bxe5 {[%clk 0:00:25]} 29. Rxe5 {[%clk
0:00:15.7]} 29... Nd3 {[%clk 0:00:25.1]} 30. Rexa5 {[%clk 0:00:14.3]} 30... Rab8
{[%clk 0:00:23.6]} 31. Rxf5 {[%clk 0:00:11.9]} 31... Nxb2 {[%clk 0:00:21.7]} 32.
Ne4 {[%clk 0:00:11.2]} 32... Nd3 {[%clk 0:00:18.9]} 33. Ra7 {[%clk 0:00:10.6]}
33... Re8 {[%clk 0:00:14.7]} 34. Nc5 {[%clk 0:00:08.7]} 34... Rb1+ {[%clk
0:00:12.1]} 35. Kh2 {[%clk 0:00:09.2]} 35... Rb2 {[%clk 0:00:12.4]} 36. Ne4
{[%clk 0:00:08.9]} 36... Re2 {[%clk 0:00:11]} 37. Rg5+ {[%clk 0:00:06.4]} 37...
Kf8 {[%clk 0:00:09.9]} 38. Rf5+ {[%clk 0:00:06]} 38... Kg8 {[%clk 0:00:10.1]}
39. Rg5+ {[%clk 0:00:04.8]} 39... Kf8 {[%clk 0:00:10.3]} 40. f3 {[%clk
0:00:05.4]} 40... Ne1 {[%clk 0:00:09.3]} 41. Kg1 {[%clk 0:00:05.9]} 41... Nd3
{[%clk 0:00:07.1]} 42. d5 {[%clk 0:00:05.8]} 42... Re1+ {[%clk 0:00:06.2]} 43.
Kh2 {[%clk 0:00:05.9]} 43... Re2 {[%clk 0:00:06.9]} 44. d6 {[%clk 0:00:06.2]}
44... Ne1 {[%clk 0:00:04.2]} 45. Kg1 {[%clk 0:00:05.8]} 45... exd6 {[%clk
0:00:03]} 46. Rf5+ {[%clk 0:00:05.9]} 46... Kg8 {[%clk 0:00:02.3]} 47. Nf6+
{[%clk 0:00:06.6]} 47... Kf8 {[%clk 0:00:02.8]} 48. Rxh7 {[%clk 0:00:07.5]}
48... R8e7 {[%clk 0:00:01.8]} 49. Nd5+ {[%clk 0:00:04.4]} 49... Kg8 {[%clk
0:00:01.2]} 50. Rxe7 {[%clk 0:00:04.6]} 1-0

[Event "Early-Titled-Tuesday-Blitz-February-27-2024"]
[Site "Chess.com"]
[Date "2024.02.27"]
[Round "4"]
[White "Pedrada88"]
[Black "GoltsevDmitry2000"]
[Result "1-0"]
[WhiteElo "2572"]
[BlackElo "2764"]
[TimeControl "180+1"]
[EndTime "8:38:57 PST"]
[Termination "Pedrada88 won by checkmate"]

1. Nf3 {[%clk 0:03:00.9]} 1... d5 {[%clk 0:02:09.6]} 2. b3 {[%clk 0:03:00.3]}
2... Nf6 {[%clk 0:02:09.3]} 3. Bb2 {[%clk 0:03:00.7]} 3... c6 {[%clk 0:02:09.7]}
4. e3 {[%clk 0:02:59.5]} 4... g6 {[%clk 0:02:10.2]} 5. c4 {[%clk 0:02:59.9]}
5... Bg7 {[%clk 0:02:10.6]} 6. cxd5 {[%clk 0:02:59.3]} 6... cxd5 {[%clk
0:02:10.7]} 7. Bb5+ {[%clk 0:02:58.2]} 7... Nc6 {[%clk 0:02:10.8]} 8. Ne5 {[%clk
0:02:51.9]} 8... Bd7 {[%clk 0:02:10]} 9. Nxd7 {[%clk 0:02:50.6]} 9... Qxd7
{[%clk 0:02:09.9]} 10. O-O {[%clk 0:02:49.8]} 10... a6 {[%clk 0:02:10]} 11. Be2
{[%clk 0:02:48.3]} 11... O-O {[%clk 0:02:10.3]} 12. d3 {[%clk 0:02:45.3]} 12...
Rac8 {[%clk 0:02:09.7]} 13. Nd2 {[%clk 0:02:45.4]} 13... e5 {[%clk 0:02:09.5]}
14. Nf3 {[%clk 0:02:44]} 14... Rfe8 {[%clk 0:02:09.1]} 15. Rc1 {[%clk
0:02:43.8]} 15... Qd6 {[%clk 0:02:02.8]} 16. h3 {[%clk 0:02:43.3]} 16... Nd7
{[%clk 0:02:02.8]} 17. a3 {[%clk 0:02:39.9]} 17... f5 {[%clk 0:02:03.2]} 18. b4
{[%clk 0:02:38.4]} 18... e4 {[%clk 0:02:01.6]} 19. Nd4 {[%clk 0:02:28.6]} 19...
Nxd4 {[%clk 0:01:56]} 20. Bxd4 {[%clk 0:02:28.5]} 20... Bxd4 {[%clk 0:01:55.7]}
21. exd4 {[%clk 0:02:29.4]} 21... Nf6 {[%clk 0:01:39.5]} 22. Qb3 {[%clk
0:02:21.5]} 22... e3 {[%clk 0:01:24.9]} 23. fxe3 {[%clk 0:02:02.5]} 23... Rxc1
{[%clk 0:01:23.1]} 24. Rxc1 {[%clk 0:02:03.4]} 24... Rxe3 {[%clk 0:01:23.4]} 25.
Qc2 {[%clk 0:01:46]} 25... Kf7 {[%clk 0:00:48.8]} 26. Qc7+ {[%clk 0:01:44.9]}
26... Qxc7 {[%clk 0:00:47.9]} 27. Rxc7+ {[%clk 0:01:45.8]} 27... Re7 {[%clk
0:00:48.8]} 28. Rxe7+ {[%clk 0:01:41.7]} 28... Kxe7 {[%clk 0:00:49.7]} 29. Kf2
{[%clk 0:01:41.1]} 29... g5 {[%clk 0:00:47.5]} 30. g3 {[%clk 0:01:37.9]} 30...
Ne8 {[%clk 0:00:40.8]} 31. Ke3 {[%clk 0:01:31.8]} 31... Nc7 {[%clk 0:00:38.9]}
32. Bf3 {[%clk 0:01:26.4]} 32... Kd6 {[%clk 0:00:34]} 33. a4 {[%clk 0:01:21.1]}
33... Ne6 {[%clk 0:00:30.7]} 34. Bd1 {[%clk 0:01:13.5]} 34... f4+ {[%clk
0:00:20.6]} 35. gxf4 {[%clk 0:01:13.5]} 35... Nxf4 {[%clk 0:00:21.5]} 36. Bg4
{[%clk 0:01:05.6]} 36... b6 {[%clk 0:00:20.3]} 37. a5 {[%clk 0:01:03.9]} 37...
bxa5 {[%clk 0:00:09.8]} 38. bxa5 {[%clk 0:01:04.8]} 38... Kc6 {[%clk 0:00:04.4]}
39. Bc8 {[%clk 0:00:30.7]} 39... Kb5 {[%clk 0:00:04.6]} 40. Kf3 {[%clk
0:00:31.2]} 40... h5 {[%clk 0:00:04.3]} 41. h4 {[%clk 0:00:28.4]} 41... Nxd3
{[%clk 0:00:03.5]} 42. hxg5 {[%clk 0:00:27.5]} 42... h4 {[%clk 0:00:03.5]} 43.
g6 {[%clk 0:00:27]} 43... h3 {[%clk 0:00:04]} 44. g7 {[%clk 0:00:23.4]} 44... h2
{[%clk 0:00:04.2]} 45. Kg2 {[%clk 0:00:23.1]} 45... Ne1+ {[%clk 0:00:04.5]} 46.
Kxh2 {[%clk 0:00:20.7]} 46... Nf3+ {[%clk 0:00:05.4]} 47. Kg3 {[%clk 0:00:19.9]}
47... Nxd4 {[%clk 0:00:05.8]} 48. g8=Q {[%clk 0:00:19.4]} 48... Nf5+ {[%clk
0:00:05.7]} 49. Bxf5 {[%clk 0:00:18.9]} 49... Kxa5 {[%clk 0:00:06.2]} 50. Qxd5+
{[%clk 0:00:19]} 50... Kb4 {[%clk 0:00:06.6]} 51. Bd3 {[%clk 0:00:17.6]} 51...
a5 {[%clk 0:00:07.5]} 52. Qc4+ {[%clk 0:00:17.8]} 52... Ka3 {[%clk 0:00:07.5]}
53. Bc2 {[%clk 0:00:16.7]} 53... Kb2 {[%clk 0:00:07.8]} 54. Qb3+ {[%clk
0:00:16.7]} 54... Kc1 {[%clk 0:00:08.2]} 55. Bh7 {[%clk 0:00:15.6]} 55... Kd2
{[%clk 0:00:08.3]} 56. Kf4 {[%clk 0:00:15.6]} 56... a4 {[%clk 0:00:08.5]} 57.
Qd3+ {[%clk 0:00:15.6]} 57... Ke1 {[%clk 0:00:08.6]} 58. Ke3 {[%clk 0:00:15.7]}
58... a3 {[%clk 0:00:09.5]} 59. Qe2# {[%clk 0:00:16]} 1-0

[Event "Early-Titled-Tuesday-Blitz-February-27-2024"]
[Site "Chess.com"]
[Date "2024.02.27"]
[Round "4"]
[White "Jumbo"]
[Black "FairChess_on_YouTube"]
[Result "1/2-1/2"]
[WhiteElo "2873"]
[BlackElo "3105"]
[TimeControl "180+1"]
[EndTime "8:38:58 PST"]
[Termination "Game drawn - insufficient material"]

1. Nf3 {[%clk 0:02:53.8]} 1... Nf6 {[%clk 0:02:57.1]} 2. d4 {[%clk 0:02:54.3]}
2... e6 {[%clk 0:02:53.6]} 3. c4 {[%clk 0:02:54.6]} 3... b6 {[%clk 0:02:49.5]}
4. g3 {[%clk 0:02:53.7]} 4... Bb7 {[%clk 0:02:48.5]} 5. Bg2 {[%clk 0:02:52.3]}
5... Bb4+ {[%clk 0:02:47.5]} 6. Bd2 {[%clk 0:02:50.9]} 6... a5 {[%clk
0:02:47.5]} 7. O-O {[%clk 0:02:48.6]} 7... O-O {[%clk 0:02:47.6]} 8. Bf4 {[%clk
0:02:46.8]} 8... Be7 {[%clk 0:02:47.1]} 9. Nc3 {[%clk 0:02:46.4]} 9... Ne4
{[%clk 0:02:46.7]} 10. Nb5 {[%clk 0:02:46.7]} 10... Na6 {[%clk 0:02:45.5]} 11.
Nd2 {[%clk 0:02:28.9]} 11... Nxd2 {[%clk 0:02:41]} 12. Bxb7 {[%clk 0:02:13.8]}
12... Nxf1 {[%clk 0:02:40.7]} 13. Qxf1 {[%clk 0:01:38.5]} 13... c6 {[%clk
0:02:33.7]} 14. Bxa8 {[%clk 0:01:33.6]} 14... Qxa8 {[%clk 0:02:30.3]} 15. Nc3
{[%clk 0:01:25.2]} 15... d5 {[%clk 0:02:24.6]} 16. cxd5 {[%clk 0:01:24.2]} 16...
cxd5 {[%clk 0:02:23]} 17. Rc1 {[%clk 0:01:23.7]} 17... Rc8 {[%clk 0:02:21.2]}
18. Na4 {[%clk 0:01:00.5]} 18... Bd8 {[%clk 0:02:13]} 19. Rxc8 {[%clk
0:00:58.3]} 19... Qxc8 {[%clk 0:02:12.8]} 20. Qc1 {[%clk 0:00:58.8]} 20... Qd7
{[%clk 0:02:08.3]} 21. Nc3 {[%clk 0:00:56]} 21... h5 {[%clk 0:01:59.6]} 22. h4
{[%clk 0:00:55.4]} 22... Nb4 {[%clk 0:01:56.7]} 23. a4 {[%clk 0:00:54.3]} 23...
Qc6 {[%clk 0:01:22.3]} 24. Nb5 {[%clk 0:00:54.3]} 24... Qxc1+ {[%clk 0:01:21.7]}
25. Bxc1 {[%clk 0:00:55.2]} 25... Nc6 {[%clk 0:01:20]} 26. f3 {[%clk 0:00:54.3]}
26... f6 {[%clk 0:01:16.2]} 27. Kf2 {[%clk 0:00:53]} 27... Kf7 {[%clk
0:01:15.7]} 28. e4 {[%clk 0:00:52.9]} 28... Nb4 {[%clk 0:01:12.1]} 29. Ke2
{[%clk 0:00:51.7]} 29... dxe4 {[%clk 0:01:01.3]} 30. fxe4 {[%clk 0:00:51.6]}
30... g5 {[%clk 0:01:01.9]} 31. Bd2 {[%clk 0:00:50.7]} 31... gxh4 {[%clk
0:01:01.1]} 32. gxh4 {[%clk 0:00:51.6]} 32... f5 {[%clk 0:00:58.8]} 33. Nd6+
{[%clk 0:00:49.5]} 33... Kg6 {[%clk 0:00:56.5]} 34. Bxb4 {[%clk 0:00:36.1]}
34... axb4 {[%clk 0:00:56.4]} 35. exf5+ {[%clk 0:00:35.2]} 35... exf5 {[%clk
0:00:56.4]} 36. Nc4 {[%clk 0:00:35.9]} 36... f4 {[%clk 0:00:32.2]} 37. Kf3
{[%clk 0:00:34.6]} 37... Kf5 {[%clk 0:00:32.9]} 38. b3 {[%clk 0:00:35.1]} 38...
Ke6 {[%clk 0:00:30.8]} 39. Ke4 {[%clk 0:00:34.3]} 39... Bxh4 {[%clk 0:00:23.5]}
40. Nxb6 {[%clk 0:00:33.6]} 40... Bd8 {[%clk 0:00:17.1]} 41. Nd5 {[%clk
0:00:32.7]} 41... h4 {[%clk 0:00:12.6]} 42. Nxf4+ {[%clk 0:00:24]} 42... Kd6
{[%clk 0:00:13.2]} 43. Kf3 {[%clk 0:00:06.2]} 43... Bb6 {[%clk 0:00:12.4]} 44.
Nd3 {[%clk 0:00:06.7]} 44... Kd5 {[%clk 0:00:10.2]} 45. Nxb4+ {[%clk 0:00:06.7]}
45... Kxd4 {[%clk 0:00:10.8]} 46. a5 {[%clk 0:00:04.5]} 46... Bxa5 {[%clk
0:00:08.4]} 47. Nc6+ {[%clk 0:00:04.5]} 47... Kc3 {[%clk 0:00:07.6]} 48. Nxa5
{[%clk 0:00:04]} 48... Kb4 {[%clk 0:00:08.2]} 49. Kg4 {[%clk 0:00:03.4]} 49...
Kxa5 {[%clk 0:00:08.5]} 50. Kh3 {[%clk 0:00:02.3]} 50... Kb4 {[%clk 0:00:09.4]}
51. Kxh4 {[%clk 0:00:02.8]} 51... Kxb3 {[%clk 0:00:10.3]} 1/2-1/2

[Event "Early-Titled-Tuesday-Blitz-February-27-2024"]
[Site "Chess.com"]
[Date "2024.02.27"]
[Round "4"]
[White "annamaja"]
[Black "DrCeltic"]
[Result "1-0"]
[WhiteElo "2428"]
[BlackElo "2586"]
[TimeControl "180+1"]
[EndTime "8:38:59 PST"]
[Termination "annamaja won on time"]

1. e4 {[%clk 0:03:00.9]} 1... c5 {[%clk 0:02:59.4]} 2. Nf3 {[%clk 0:03:00.1]}
2... e6 {[%clk 0:02:59.8]} 3. d4 {[%clk 0:02:58.2]} 3... cxd4 {[%clk 0:03:00.7]}
4. Nxd4 {[%clk 0:02:59]} 4... Nf6 {[%clk 0:03:01.4]} 5. Bd3 {[%clk 0:02:55.2]}
5... Nc6 {[%clk 0:03:01.2]} 6. Nb3 {[%clk 0:02:41.9]} 6... Be7 {[%clk
0:03:00.8]} 7. O-O {[%clk 0:02:40.8]} 7... O-O {[%clk 0:03:01.1]} 8. c4 {[%clk
0:02:35]} 8... d6 {[%clk 0:02:57.6]} 9. Nc3 {[%clk 0:02:35.1]} 9... a6 {[%clk
0:02:56.3]} 10. f4 {[%clk 0:02:31.5]} 10... Qc7 {[%clk 0:02:56.2]} 11. Be3
{[%clk 0:02:27.9]} 11... Nb4 {[%clk 0:02:56.5]} 12. Rc1 {[%clk 0:02:23]} 12...
Nxd3 {[%clk 0:02:56.6]} 13. Qxd3 {[%clk 0:02:23.9]} 13... b6 {[%clk 0:02:56.4]}
14. h3 {[%clk 0:02:04.5]} 14... Bb7 {[%clk 0:02:56.3]} 15. g4 {[%clk 0:02:03.4]}
15... Rac8 {[%clk 0:02:49.1]} 16. g5 {[%clk 0:01:49.7]} 16... Nd7 {[%clk
0:02:49]} 17. Ne2 {[%clk 0:01:36.7]} 17... Qb8 {[%clk 0:02:39.7]} 18. Ng3 {[%clk
0:01:29.9]} 18... Rfd8 {[%clk 0:02:39.7]} 19. Nd4 {[%clk 0:01:24.7]} 19... Nc5
{[%clk 0:02:37.5]} 20. Qc2 {[%clk 0:01:19]} 20... Qa8 {[%clk 0:02:29.8]} 21. e5
{[%clk 0:01:02.4]} 21... Ne4 {[%clk 0:02:29.5]} 22. Nxe4 {[%clk 0:00:40.7]}
22... Bxe4 {[%clk 0:02:30.4]} 23. Qf2 {[%clk 0:00:41.2]} 23... g6 {[%clk
0:02:18.1]} 24. Rfd1 {[%clk 0:00:35]} 24... d5 {[%clk 0:02:10.5]} 25. cxd5
{[%clk 0:00:33.6]} 25... Bxd5 {[%clk 0:02:10.9]} 26. Ne2 {[%clk 0:00:25.9]}
26... Bxa2 {[%clk 0:02:07]} 27. Bxb6 {[%clk 0:00:23.7]} 27... Rxc1 {[%clk
0:01:57]} 28. Rxc1 {[%clk 0:00:21.4]} 28... Rb8 {[%clk 0:01:56.6]} 29. Nc3
{[%clk 0:00:14.6]} 29... Bb3 {[%clk 0:01:45.3]} 30. Bc7 {[%clk 0:00:07.4]} 30...
Rc8 {[%clk 0:01:43]} 31. Bd6 {[%clk 0:00:07.5]} 31... Bd8 {[%clk 0:01:41.5]} 32.
Kh2 {[%clk 0:00:05.3]} 32... Qb7 {[%clk 0:01:34.1]} 33. Re1 {[%clk 0:00:05.3]}
33... Ba5 {[%clk 0:01:25.6]} 34. Qd4 {[%clk 0:00:03.6]} 34... Qf3 {[%clk
0:01:14.2]} 35. Rg1 {[%clk 0:00:02.2]} 35... Rc4 {[%clk 0:00:57.8]} 36. Qa7
{[%clk 0:00:01.8]} 36... Qxf4+ {[%clk 0:00:54.3]} 37. Rg3 {[%clk 0:00:02.5]}
37... Rc8 {[%clk 0:00:15.3]} 38. Qxa6 {[%clk 0:00:03]} 38... Qc4 {[%clk
0:00:08.1]} 39. Qxa5 {[%clk 0:00:02.8]} 39... h5 {[%clk 0:00:08.4]} 40. gxh6
{[%clk 0:00:02.8]} 40... Kh7 {[%clk 0:00:08.9]} 41. Qb6 {[%clk 0:00:03.3]} 41...
Qf4 {[%clk 0:00:06.9]} 42. Qe3 {[%clk 0:00:03.2]} 42... Qh4 {[%clk 0:00:06.1]}
43. Ne4 {[%clk 0:00:03]} 43... Rc2+ {[%clk 0:00:05]} 44. Rg2 {[%clk 0:00:03.2]}
44... Rxg2+ {[%clk 0:00:04.5]} 45. Kxg2 {[%clk 0:00:04.1]} 45... Bd5 {[%clk
0:00:05.3]} 46. Kf3 {[%clk 0:00:03.8]} 46... Qxh3+ {[%clk 0:00:05.6]} 47. Ke2
{[%clk 0:00:04.2]} 47... Qg2+ {[%clk 0:00:04.8]} 48. Kd3 {[%clk 0:00:04.6]}
48... Qxb2 {[%clk 0:00:05]} 49. Nf6+ {[%clk 0:00:04.7]} 49... Kh8 {[%clk
0:00:04.6]} 50. Nxd5 {[%clk 0:00:05.5]} 50... Qb3+ {[%clk 0:00:04.2]} 51. Nc3
{[%clk 0:00:04.9]} 51... Qd5+ {[%clk 0:00:05.1]} 52. Nxd5 {[%clk 0:00:05.2]} 1-0

[Event "Early-Titled-Tuesday-Blitz-February-27-2024"]
[Site "Chess.com"]
[Date "2024.02.27"]
[Round "4"]
[White "Natalya_Buksa"]
[Black "NewBornNow"]
[Result "1-0"]
[WhiteElo "2612"]
[BlackElo "2863"]
[TimeControl "180+1"]
[EndTime "8:39:04 PST"]
[Termination "Natalya_Buksa won on time"]

1. d4 {[%clk 0:03:00.9]} 1... Nf6 {[%clk 0:02:59.2]} 2. Nc3 {[%clk 0:03:00.3]}
2... d5 {[%clk 0:02:58.6]} 3. Bf4 {[%clk 0:03:00.6]} 3... g6 {[%clk 0:02:57.3]}
4. e3 {[%clk 0:03:00.6]} 4... Bg7 {[%clk 0:02:57.4]} 5. h4 {[%clk 0:03:01.2]}
5... h5 {[%clk 0:02:55.7]} 6. Nf3 {[%clk 0:03:01.4]} 6... O-O {[%clk 0:02:54.8]}
7. Ne5 {[%clk 0:03:00.9]} 7... c5 {[%clk 0:02:54.6]} 8. Be2 {[%clk 0:03:01.2]}
8... Qb6 {[%clk 0:02:52.8]} 9. Rb1 {[%clk 0:02:51.6]} 9... Nc6 {[%clk
0:02:51.2]} 10. O-O {[%clk 0:02:48.1]} 10... cxd4 {[%clk 0:02:45.9]} 11. Nxc6
{[%clk 0:02:46.5]} 11... Qxc6 {[%clk 0:02:38]} 12. exd4 {[%clk 0:02:46.2]} 12...
Bf5 {[%clk 0:02:37.4]} 13. Be5 {[%clk 0:02:43.4]} 13... a6 {[%clk 0:02:29.5]}
14. a4 {[%clk 0:02:40.4]} 14... Rac8 {[%clk 0:02:28.5]} 15. Re1 {[%clk
0:02:27.1]} 15... Ne4 {[%clk 0:02:21.8]} 16. Nxe4 {[%clk 0:02:25.5]} 16... Bxe4
{[%clk 0:02:17.1]} 17. Bd3 {[%clk 0:02:25.3]} 17... Bxe5 {[%clk 0:02:12.8]} 18.
dxe5 {[%clk 0:02:21.2]} 18... Qxa4 {[%clk 0:02:08.7]} 19. Bxe4 {[%clk
0:01:59.9]} 19... dxe4 {[%clk 0:02:07.6]} 20. b3 {[%clk 0:02:00.3]} 20... Qc6
{[%clk 0:02:06.5]} 21. c4 {[%clk 0:01:53.9]} 21... Rcd8 {[%clk 0:01:56.9]} 22.
Qe2 {[%clk 0:01:54.1]} 22... Rd4 {[%clk 0:01:56.6]} 23. Rbd1 {[%clk 0:01:14.7]}
23... Rfd8 {[%clk 0:01:55.8]} 24. Rxd4 {[%clk 0:01:13.9]} 24... Rxd4 {[%clk
0:01:55.1]} 25. Qe3 {[%clk 0:01:14.4]} 25... Rd3 {[%clk 0:01:44.9]} 26. Qf4
{[%clk 0:01:07.6]} 26... Rxb3 {[%clk 0:01:37.9]} 27. Rxe4 {[%clk 0:01:07.4]}
27... Rd3 {[%clk 0:01:28.2]} 28. e6 {[%clk 0:01:01.3]} 28... Rd1+ {[%clk
0:01:23]} 29. Kh2 {[%clk 0:00:59.9]} 29... Qd6 {[%clk 0:01:23]} 30. exf7+ {[%clk
0:00:54.3]} 30... Kf8 {[%clk 0:01:22.5]} 31. Re5 {[%clk 0:00:54.3]} 31... Rd4
{[%clk 0:01:12.3]} 32. Qh6+ {[%clk 0:00:53.6]} 32... Kxf7 {[%clk 0:01:12.1]} 33.
f4 {[%clk 0:00:48.3]} 33... Qf6 {[%clk 0:01:03.5]} 34. g3 {[%clk 0:00:36.4]}
34... Rxc4 {[%clk 0:00:48.9]} 35. Qh7+ {[%clk 0:00:36.2]} 35... Kf8 {[%clk
0:00:48.6]} 36. Kh3 {[%clk 0:00:19.6]} 36... Rc6 {[%clk 0:00:39.2]} 37. Rg5
{[%clk 0:00:17.6]} 37... Ke8 {[%clk 0:00:28.9]} 38. Qg8+ {[%clk 0:00:16.8]}
38... Kd7 {[%clk 0:00:26.7]} 39. Rd5+ {[%clk 0:00:14.1]} 39... Rd6 {[%clk
0:00:25.8]} 40. Re5 {[%clk 0:00:12.4]} 40... Kc7 {[%clk 0:00:22.4]} 41. Qe8
{[%clk 0:00:10.6]} 41... Rd7 {[%clk 0:00:18.6]} 42. Rc5+ {[%clk 0:00:10.5]}
42... Kd6 {[%clk 0:00:16]} 43. Re5 {[%clk 0:00:05.9]} 43... Kc7 {[%clk
0:00:14.3]} 44. Rc5+ {[%clk 0:00:05.7]} 44... Kb6 {[%clk 0:00:14.4]} 45. Qxd7
{[%clk 0:00:02.9]} 45... Kxc5 {[%clk 0:00:14.1]} 46. Qxb7 {[%clk 0:00:02.9]}
46... Qe6+ {[%clk 0:00:12.2]} 47. Kh2 {[%clk 0:00:02.7]} 47... Qe2+ {[%clk
0:00:10.7]} 48. Kh3 {[%clk 0:00:03.1]} 48... Qe6+ {[%clk 0:00:09.9]} 49. Kh2
{[%clk 0:00:03.4]} 49... Qd6 {[%clk 0:00:10]} 50. Qc8+ {[%clk 0:00:03.1]} 50...
Kd4 {[%clk 0:00:09.7]} 51. Qh8+ {[%clk 0:00:02.5]} 51... Ke3 {[%clk 0:00:09.1]}
52. f5 {[%clk 0:00:03]} 52... Kf3 {[%clk 0:00:06.5]} 53. Qc3+ {[%clk 0:00:03]}
53... Kg4 {[%clk 0:00:04.2]} 54. fxg6 {[%clk 0:00:03.6]} 1-0

[Event "Early-Titled-Tuesday-Blitz-February-27-2024"]
[Site "Chess.com"]
[Date "2024.02.27"]
[Round "4"]
[White "PabloZarnicki"]
[Black "sergoy"]
[Result "0-1"]
[WhiteElo "2633"]
[BlackElo "3063"]
[TimeControl "180+1"]
[EndTime "8:39:05 PST"]
[Termination "sergoy won on time"]

1. e4 {[%clk 0:02:58.6]} 1... c5 {[%clk 0:03:00]} 2. Nf3 {[%clk 0:02:58.1]} 2...
d6 {[%clk 0:03:00.5]} 3. Bb5+ {[%clk 0:02:57]} 3... Nd7 {[%clk 0:02:59.6]} 4. d4
{[%clk 0:02:54.9]} 4... cxd4 {[%clk 0:02:55.9]} 5. Qxd4 {[%clk 0:02:55.8]} 5...
a6 {[%clk 0:02:45.2]} 6. Bxd7+ {[%clk 0:02:55.8]} 6... Bxd7 {[%clk 0:01:40.1]}
7. Nc3 {[%clk 0:02:56.7]} 7... e5 {[%clk 0:01:39.4]} 8. Qd3 {[%clk 0:02:56.5]}
8... Rc8 {[%clk 0:01:38.7]} 9. O-O {[%clk 0:02:53.8]} 9... Qc7 {[%clk
0:01:38.7]} 10. Bg5 {[%clk 0:02:49.1]} 10... h6 {[%clk 0:01:38]} 11. Bh4 {[%clk
0:02:49.3]} 11... g5 {[%clk 0:01:38.3]} 12. Bg3 {[%clk 0:02:49.4]} 12... Nf6
{[%clk 0:01:39]} 13. Rfd1 {[%clk 0:02:46.6]} 13... Be6 {[%clk 0:01:38.6]} 14. a4
{[%clk 0:02:42]} 14... Be7 {[%clk 0:01:38.5]} 15. Nd2 {[%clk 0:02:38.9]} 15...
h5 {[%clk 0:01:34.4]} 16. h4 {[%clk 0:02:34]} 16... Ng4 {[%clk 0:01:31.5]} 17.
hxg5 {[%clk 0:02:26.8]} 17... h4 {[%clk 0:01:31.7]} 18. Bh2 {[%clk 0:02:26.5]}
18... Nxh2 {[%clk 0:01:29.1]} 19. Kxh2 {[%clk 0:02:26.1]} 19... Bxg5 {[%clk
0:01:29.8]} 20. Nf3 {[%clk 0:02:22.9]} 20... Be7 {[%clk 0:01:27.6]} 21. Rd2
{[%clk 0:02:15.7]} 21... Qc4 {[%clk 0:01:18.7]} 22. Qxc4 {[%clk 0:02:13.4]}
22... Rxc4 {[%clk 0:01:18.3]} 23. Rd3 {[%clk 0:02:04.7]} 23... f5 {[%clk
0:01:15.4]} 24. Nd2 {[%clk 0:02:04.6]} 24... Rd4 {[%clk 0:01:10.2]} 25. Rxd4
{[%clk 0:01:52.7]} 25... exd4 {[%clk 0:01:11.1]} 26. Ne2 {[%clk 0:01:44.7]}
26... Bf6 {[%clk 0:01:09.6]} 27. Kh1 {[%clk 0:01:25]} 27... h3 {[%clk
0:01:04.8]} 28. Nf4 {[%clk 0:01:24.6]} 28... hxg2+ {[%clk 0:00:53.9]} 29. Kxg2
{[%clk 0:01:25.5]} 29... Bd7 {[%clk 0:00:54]} 30. Re1 {[%clk 0:01:19.1]} 30...
Be5 {[%clk 0:00:52.7]} 31. Nd3 {[%clk 0:01:15.5]} 31... Bc6 {[%clk 0:00:45.7]}
32. f4 {[%clk 0:01:03.4]} 32... Bf6 {[%clk 0:00:44.3]} 33. Kg1 {[%clk
0:00:55.5]} 33... Kd7 {[%clk 0:00:42.2]} 34. b3 {[%clk 0:00:49.3]} 34... Bd8
{[%clk 0:00:34.7]} 35. Nf2 {[%clk 0:00:43.5]} 35... Bh4 {[%clk 0:00:25]} 36.
exf5 {[%clk 0:00:35.1]} 36... Rg8+ {[%clk 0:00:21.1]} 37. Kf1 {[%clk 0:00:34.4]}
37... Bg2+ {[%clk 0:00:21.7]} 38. Ke2 {[%clk 0:00:31.9]} 38... Re8+ {[%clk
0:00:21.2]} 39. Kd1 {[%clk 0:00:26]} 39... Bxf2 {[%clk 0:00:21.1]} 40. Rxe8
{[%clk 0:00:22.5]} 40... Kxe8 {[%clk 0:00:22]} 41. Nc4 {[%clk 0:00:22.5]} 41...
Kd7 {[%clk 0:00:21.2]} 42. f6 {[%clk 0:00:22.7]} 42... Ke6 {[%clk 0:00:17.6]}
43. f7 {[%clk 0:00:21.7]} 43... Kxf7 {[%clk 0:00:17.8]} 44. Nxd6+ {[%clk
0:00:22.2]} 44... Ke6 {[%clk 0:00:18.4]} 45. Nc4 {[%clk 0:00:21.9]} 45... Bf3+
{[%clk 0:00:18]} 46. Kd2 {[%clk 0:00:22.3]} 46... Kf5 {[%clk 0:00:15.9]} 47. Kd3
{[%clk 0:00:20.5]} 47... Kxf4 {[%clk 0:00:14.5]} 48. a5 {[%clk 0:00:20.6]} 48...
Be4+ {[%clk 0:00:14.1]} 49. Kd2 {[%clk 0:00:21]} 49... Be3+ {[%clk 0:00:13.7]}
50. Kd1 {[%clk 0:00:20.4]} 50... Bf3+ {[%clk 0:00:14]} 51. Ke1 {[%clk
0:00:20.2]} 51... Ke4 {[%clk 0:00:13.9]} 52. Nd6+ {[%clk 0:00:20]} 52... Ke5
{[%clk 0:00:14.4]} 53. Nc4+ {[%clk 0:00:18.7]} 53... Kd5 {[%clk 0:00:14.7]} 54.
Kf1 {[%clk 0:00:16.3]} 54... Kc5 {[%clk 0:00:14.4]} 55. Ke1 {[%clk 0:00:15]}
55... Kb4 {[%clk 0:00:14.1]} 56. Ne5 {[%clk 0:00:15.6]} 56... Be4 {[%clk
0:00:13.3]} 57. Kd1 {[%clk 0:00:12.6]} 57... Kc3 {[%clk 0:00:13.8]} 58. Nc4
{[%clk 0:00:12.2]} 58... Bxc2+ {[%clk 0:00:13.9]} 59. Ke1 {[%clk 0:00:12.8]}
59... Bf4 {[%clk 0:00:13.9]} 0-1